bitfinex/quotes_SOLUSD_20240908
["timestamp","ask_amount","ask_price","bid_price","bid_amount"]
[1725835299149,53.0478569,130.48,130.41,22.6868]
[1725835299376,26.1317,130.47,130.41,22.6868]
[1725835299662,46.91713651,130.46,130.41,22.6868]
[1725835299985,46.91713651,130.46,130.38,6.6285]
[1725835299986,8.04983651,130.45,130.38,6.6285]
[1725835300558,51.1332,130.44,130.38,6.6285]
[1725835300795,51.1332,130.44,130.37,15.7435]
[1725835300796,1.91756316,130.43,130.37,15.7435]
[1725835300969,1.91769197,130.42,130.37,15.7435]
[1725835301269,46.91769197,130.42,130.37,15.7435]
[1725835303753,46.91769197,130.42,130.34,6.6285]
[1725835303942,20.0,130.41,130.34,6.6285]
[1725835304146,46.9179006,130.4,130.34,6.6285]
[1725835304452,45.0,130.4,130.34,6.6285]
[1725835305840,1.91778985,130.39,130.31,22.372]
[1725835306039,21.91778985,130.39,130.31,22.372]
[1725835306356,45.0,130.38,130.31,22.372]
[1725835306842,1.91792203,130.37,130.31,22.372]
[1725835307041,1.91792203,130.37,130.32,20.0]
[1725835307460,45.0,130.38,130.32,20.0]
[1725835308966,1.91792954,130.37,130.32,20.0]
[1725835310054,1.91803556,130.41,130.32,20.0]
[1725835310250,46.91803556,130.41,130.32,20.0]
[1725835314775,45.0,130.41,130.32,20.0]
[1725835314954,1.91786593,130.4,130.32,20.0]
[1725835315154,1.91787921,130.39,130.32,20.0]
[1725835319956,45.0,130.4,130.32,20.0]
[1725835320155,1.91799362,130.39,130.32,20.0]
[1725835322965,1.91799362,130.39,130.31,22.372]
[1725835323174,21.91799362,130.39,130.31,22.372]
[1725835323389,45.0,130.38,130.31,22.372]
[1725835323688,1.91835631,130.37,130.31,22.372]
[1725835325265,45.0,130.38,130.31,22.372]
[1725835326265,21.91837654,130.39,130.31,22.372]
[1725835326463,1.91825184,130.38,130.31,22.372]
[1725835326664,1.91825359,130.41,130.31,22.372]
[1725835327663,46.91825359,130.41,130.31,22.372]
[1725835327861,20.0,130.4,130.31,22.372]
[1725835328090,46.91821338,130.39,130.31,22.372]
[1725835329075,46.91826672,130.39,130.31,22.372]
[1725835329588,45.0,130.39,130.31,22.372]
[1725835329978,46.91807291,130.39,130.31,22.372]
[1725835333697,46.91802877,130.39,130.31,22.372]
[1725835336400,45.0,130.39,130.31,22.372]
[1725835336575,1.91789753,130.43,130.33,27.71826076]
[1725835337027,24.04860996,130.43,130.4,6.2887]
[1725835337198,1.9177816,130.45,130.4,6.2887]
[1725835337588,8.04831407,130.49,130.4,6.2887]
[1725835338106,1.91715332,130.48,130.4,6.2887]
[1725835338305,14.90047092,130.5,130.4,6.2887]
[1725835340983,45.0,130.49,130.4,6.2887]
[1725835341185,1.91686636,130.48,130.4,6.2887]
[1725835341991,21.91686636,130.48,130.4,6.2887]
[1725835342295,45.0,130.47,130.4,6.2887]
[1725835347388,1.91690454,130.46,130.4,6.2887]
[1725835347594,1.91703375,130.45,130.4,6.2887]
[1725835347794,1.91704202,130.46,130.4,6.2887]
[1725835348407,46.91703948,130.47,130.4,6.2887]
[1725835348912,45.0,130.47,130.4,6.2887]
[1725835349704,12.98350927,130.5,130.4,6.2887]
[1725835350003,20.0,130.49,130.41,15.2786]
[1725835350410,14.90007948,130.5,130.41,15.2786]
[1725835350613,12.98350927,130.5,130.43,6.035]
[1725835351308,12.98350927,130.5,130.43,7.18054405]
[1725835351495,12.98350927,130.5,130.44,15.6195]
[1725835359913,46.91615025,130.49,130.44,15.6195]
[1725835360117,1.9165467,130.48,130.44,15.6195]
[1725835361214,21.9165467,130.48,130.43,6.035]
[1725835361412,45.0,130.47,130.43,6.035]
[1725835361791,1.91693746,130.46,130.41,16.196]
[1725835362013,1.91717927,130.45,130.41,16.196]
[1725835365739,46.91713499,130.47,130.41,16.196]
[1725835366207,6.1327,130.45,130.41,16.196]
[1725835366532,45.0,130.44,130.41,16.196]
[1725835366734,1.91722296,130.43,130.41,16.196]
[1725835367117,45.0,130.44,130.41,16.196]
[1725835367529,46.91722243,130.45,130.41,16.196]
[1725835367842,53.04982243,130.45,130.41,16.196]
[1725835368010,53.04982243,130.45,130.4,6.2305]
[1725835368530,1.91734805,130.44,130.4,6.2305]
[1725835368735,21.91734805,130.44,130.4,6.2305]
[1725835368903,45.0,130.43,130.4,6.2305]
[1725835371745,1.91716514,130.49,130.4,6.2305]
[1725835371919,1.91686243,130.48,130.4,6.2305]
[1725835372120,12.98350927,130.5,130.41,36.2467]
[1725835373518,1.91646148,130.49,130.41,36.2467]
[1725835373720,1.91652226,130.48,130.41,36.2467]
[1725835374919,1.91652226,130.48,130.41,16.2467]
[1725835375119,21.91652226,130.48,130.41,16.2467]
[1725835375342,45.0,130.47,130.41,16.2467]
[1725835375545,1.91694399,130.46,130.41,16.2467]
[1725835375727,1.91693383,130.45,130.41,16.2467]
[1725835376126,1.91709458,130.46,130.41,16.2467]
[1725835376323,46.91709458,130.47,130.41,16.2467]
[1725835377421,20.0,130.46,130.41,16.2467]
[1725835377825,45.0,130.45,130.41,16.2467]
[1725835379259,46.91710594,130.45,130.41,16.2467]
[1725835380240,46.91710594,130.45,130.4,6.2305]
[1725835380444,46.91710594,130.45,130.38,16.2304]
[1725835380445,20.0,130.44,130.38,16.2304]
[1725835380657,1.91766046,130.43,130.38,16.2304]
[1725835380944,1.91766046,130.42,130.38,16.2304]
[1725835381146,46.91766046,130.42,130.38,16.2304]
[1725835381353,46.91766046,130.42,130.37,6.3954]
[1725835381354,46.91766046,130.42,130.34,22.5261]
[1725835381525,1.91766046,130.42,130.34,22.5261]
[1725835381718,6.1353,130.4,130.34,22.5261]
[1725835381918,46.91819029,130.39,130.34,22.5261]
[1725835382533,45.0,130.38,130.34,22.5261]
[1725835382850,1.91819029,130.39,130.34,22.5261]
[1725835385248,45.0,130.4,130.34,22.5261]
[1725835385747,46.91802591,130.41,130.34,22.5261]
[1725835385921,45.0,130.41,130.34,22.5261]
[1725835386117,1.91789118,130.42,130.34,22.5261]
[1725835386323,1.91776105,130.42,130.34,22.5261]
[1725835386642,1.91775264,130.44,130.34,22.5261]
[1725835388239,28.05085264,130.44,130.34,22.5261]
[1725835388326,6.1336,130.43,130.34,22.5261]
[1725835388545,1.91772584,130.42,130.34,22.5261]
[1725835388852,46.91772584,130.42,130.34,22.5261]
[1725835389043,1.91772584,130.42,130.34,22.5261]
[1725835392637,46.91778716,130.43,130.34,22.5261]
[1725835392840,21.91777291,130.44,130.34,22.5261]
[1725835393155,20.0,130.43,130.34,22.5261]
[1725835393950,21.91777291,130.44,130.34,22.5261]
[1725835394155,21.91777291,130.44,130.34,50.24436076]
[1725835394358,21.91753667,130.45,130.35,41.6058]
[1725835394543,1.91753667,130.45,130.35,41.6058]
[1725835394840,20.0,130.44,130.35,41.6058]
[1725835395015,45.0,130.43,130.35,41.6058]
[1725835395162,46.91738541,130.43,130.35,41.6058]
[1725835396232,45.0,130.43,130.35,41.6058]
[1725835398058,45.0,130.43,130.36,15.7115]
[1725835398390,1.91737027,130.48,130.38,15.7115]
[1725835398656,20.0,130.48,130.39,6.4133]
[1725835398830,21.91692749,130.48,130.39,6.4133]
[1725835399948,45.0,130.47,130.39,6.4133]
[1725835400165,20.0,130.46,130.39,6.4133]
[1725835400332,16.08350927,130.5,130.41,6.4133]
[1725835400641,8.04654165,130.51,130.41,6.4133]
[1725835400642,32.83908714,130.49,130.41,6.4133]
[1725835400959,1.91670911,130.48,130.41,6.4133]
[1725835401274,18.41624296,130.48,130.41,6.4133]
[1725835401757,45.0,130.47,130.41,6.4133]
[1725835401968,1.91671193,130.46,130.41,6.4133]
[1725835402756,45.0,130.47,130.41,6.4133]
[1725835403084,16.49953385,130.48,130.42,16.6176]
[1725835403578,1.91647638,130.47,130.42,16.6176]
[1725835404493,46.91647638,130.47,130.42,16.6176]
[1725835405173,53.04817638,130.47,130.42,16.6176]
[1725835405677,20.0,130.46,130.42,16.6176]
[1725835405981,46.91710783,130.45,130.42,16.6176]
[1725835406682,46.91710783,130.45,130.41,6.4133]
[1725835406683,21.53650742,130.44,130.41,6.4133]
[1725835406855,45.0,130.43,130.41,6.4133]
[1725835407480,45.0,130.43,130.38,23.0102]
[1725835407874,1.91762357,130.42,130.38,23.0102]
[1725835408079,53.05135287,130.43,130.38,23.0102]
[1725835408865,46.91765287,130.43,130.38,23.0102]
[1725835409069,1.91765249,130.42,130.38,23.0102]
[1725835409286,46.91765249,130.43,130.38,23.0102]
[1725835409594,1.91765237,130.42,130.38,23.0102]
[1725835409884,46.91765237,130.43,130.38,23.0102]
[1725835410062,45.0,130.43,130.38,23.0102]
[1725835410881,21.91744039,130.44,130.38,23.0102]
[1725835411092,1.91744039,130.44,130.38,23.0102]
[1725835412270,8.05054039,130.44,130.38,23.0102]
[1725835412463,71.1336,130.43,130.38,23.0102]
[1725835412688,51.1336,130.43,130.38,23.0102]
[1725835413431,45.0,130.43,130.38,23.0102]
[1725835414587,21.91765021,130.42,130.35,16.4387]
[1725835414792,6.1355,130.39,130.35,16.4387]
[1725835415001,21.91829936,130.38,130.34,6.001]
[1725835415166,45.0,130.37,130.31,16.4387]
[1725835415506,1.91851879,130.36,130.31,22.4397]
[1725835416161,45.0,130.37,130.31,22.4397]
[1725835416795,1.91841941,130.36,130.31,22.4397]
[1725835417097,46.91847301,130.37,130.31,22.4397]
[1725835417589,45.0,130.37,130.31,22.4397]
[1725835420069,21.91841053,130.36,130.22,22.1066]
[1725835420273,1.91904483,130.35,130.22,22.1066]
[1725835420487,46.91904483,130.35,130.22,22.1066]
[1725835420775,20.0,130.34,130.22,22.1066]
[1725835420986,46.91910383,130.33,130.22,22.1066]
[1725835421195,1.91923523,130.32,130.22,22.1066]
[1725835421497,46.91921907,130.33,130.22,22.1066]
[1725835421677,46.91921907,130.33,130.23,27.71826076]
[1725835421678,63.23897969,130.33,130.23,27.71826076]
[1725835421937,63.23898339,130.33,130.23,27.71826076]
[1725835422192,63.2391173,130.33,130.22,22.1066]
[1725835422891,16.51585184,130.32,130.23,20.0]
[1725835423191,45.0,130.31,130.23,20.0]
[1725835424779,45.0,130.31,130.22,22.1066]
[1725835424780,21.91919007,130.3,130.22,22.1066]
[1725835425103,46.91964185,130.29,130.22,22.1066]
[1725835425296,63.05926096,130.29,130.22,22.1066]
[1725835425518,16.25884386,130.28,130.22,22.1066]
[1725835425774,45.0,130.27,130.22,22.1066]
[1725835426187,1.9196417,130.26,130.22,22.1066]
[1725835426392,17.73989233,130.26,130.22,22.1066]
[1725835426599,45.0,130.25,130.22,22.1066]
[1725835426784,1.91988615,130.24,130.22,22.1066]
[1725835426986,1.91988615,130.24,130.22,15.978]
[1725835427581,45.0,130.25,130.22,15.978]
[1725835428417,45.0,130.25,130.19,6.2579]
[1725835428695,46.92005901,130.25,130.19,6.2579]
[1725835429185,15.14279191,130.24,130.19,6.2579]
[1725835429496,45.0,130.23,130.19,6.2579]
[1725835430702,46.92010781,130.23,130.19,6.2579]
[1725835431100,45.0,130.23,130.19,6.2579]
[1725835431409,15.14279191,130.24,130.19,6.2579]
[1725835431904,45.0,130.23,130.19,6.2579]
[1725835432431,15.14279191,130.24,130.19,6.2579]
[1725835433422,15.14279191,130.24,130.2,20.0]
[1725835433704,15.14279191,130.24,130.2,47.71826076]
[1725835433899,1.91994831,130.29,130.2,47.71826076]
[1725835434283,13.86043556,130.28,130.2,20.0]
[1725835434688,1.91961415,130.27,130.2,20.0]
[1725835435007,46.91982176,130.27,130.2,20.0]
[1725835435411,1.91995463,130.26,130.2,20.0]
[1725835435844,46.91995463,130.26,130.2,20.0]
[1725835436212,1.91995463,130.26,130.2,20.0]
[1725835436420,1.91995463,130.26,130.19,6.2579]
[1725835436589,1.91995463,130.26,130.15,6.5993]
[1725835436590,14.04397781,130.25,130.15,6.5993]
[1725835436790,71.1425,130.24,130.15,6.5993]
[1725835437114,1.92079495,130.23,130.15,6.5993]
[1725835437315,13.50595351,130.22,130.15,6.5993]
[1725835437493,46.92060099,130.21,130.15,6.5993]
[1725835437993,45.0,130.21,130.15,6.5993]
[1725835440535,13.50595351,130.22,130.15,6.5993]
[1725835440743,13.50595351,130.22,130.16,20.0]
[1725835442407,13.50595351,130.22,130.15,6.5993]
[1725835442637,66.92066138,130.21,130.14,15.6348]
[1725835442842,14.57247918,130.2,130.12,6.1061]
[1725835443147,12.83832465,130.19,130.12,6.1061]
[1725835443466,46.92128203,130.18,130.12,6.1061]
[1725835443641,15.06353051,130.17,130.1,0.861619]
[1725835443803,57.92382874,130.16,130.1,0.861619]
[1725835444012,12.92382874,130.16,130.1,28.57987976]
[1725835444326,45.0,130.18,130.12,15.9714]
[1725835447514,18.15808624,130.22,130.12,15.9714]
[1725835447858,12.34788624,130.22,130.14,6.1061]
[1725835448627,12.34788624,130.22,130.15,20.0]
[1725835449911,45.0,130.21,130.15,20.0]
[1725835450116,46.92047836,130.21,130.14,6.1061]
[1725835450318,1.92070768,130.2,130.12,15.9714]
[1725835451036,57.1236,130.21,130.12,15.9714]
[1725835451037,45.0,130.21,130.12,15.9714]
[1725835451259,21.920757,130.2,130.12,15.9714]
[1725835451548,45.0,130.19,130.12,15.9714]
[1725835451718,21.92097352,130.2,130.12,15.9714]
[1725835451931,20.0,130.2,130.12,15.9714]
[1725835452119,1.92072808,130.19,130.12,15.9714]
[1725835452942,1.92072808,130.19,130.1,7.324619]
[1725835453252,8.06572808,130.19,130.1,7.324619]
[1725835453414,45.0,130.18,130.1,7.324619]
[1725835453613,1.92158334,130.17,130.1,7.324619]
[1725835453832,46.92158556,130.18,130.1,7.324619]
[1725835454244,1.92134786,130.17,130.1,7.324619]
[1725835455641,1.92103434,130.2,130.1,7.324619]
[1725835456947,6.1453,130.18,130.1,7.324619]
[1725835457246,66.92167502,130.17,130.1,7.324619]
[1725835458478,65.0,130.17,130.1,7.324619]
[1725835458642,66.92151685,130.17,130.1,7.324619]
[1725835458955,21.92151685,130.17,130.1,7.324619]
[1725835459130,1.92151685,130.17,130.1,7.324619]
[1725835460223,46.92151685,130.17,130.1,7.324619]
[1725835460852,46.92151685,130.17,130.1,0.861619]
[1725835461629,96.92151685,130.17,130.1,0.861619]
[1725835461832,26.1464,130.16,130.1,0.861619]
[1725835462062,1.92185316,130.15,130.1,0.861619]
[1725835462230,1.92184929,130.14,130.1,0.861619]
[1725835463271,45.0,130.14,130.1,0.861619]
[1725835463817,45.0,130.15,130.1,0.861619]
[1725835464051,1.92170737,130.14,130.1,0.861619]
[1725835468459,1.9218847,130.14,130.1,0.861619]
[1725835469954,46.92190502,130.15,130.1,0.861619]
[1725835470455,20.0,130.16,130.1,0.861619]
[1725835470639,1.92179842,130.19,130.1,0.861619]
[1725835470839,21.92179842,130.19,130.1,0.861619]
[1725835471768,21.92179842,130.19,130.11,15.0747]
[1725835472001,32.43494459,130.19,130.11,15.0747]
[1725835472885,38.57974459,130.19,130.11,15.0747]
[1725835473047,10.51314617,130.18,130.11,15.0747]
[1725835473242,21.92152771,130.17,130.11,15.0747]
[1725835473756,45.0,130.16,130.11,15.0747]
[1725835474291,46.92152689,130.16,130.1,0.861619]
[1725835478351,21.92181866,130.17,130.1,0.861619]
[1725835478548,20.0,130.16,130.1,0.861619]
[1725835478775,1.92181866,130.17,130.1,0.861619]
[1725835479945,21.92181866,130.17,130.1,0.861619]
[1725835480244,45.0,130.16,130.1,0.861619]
[1725835480650,1.92145758,130.2,130.11,21.6779]
[1725835482050,21.92145758,130.2,130.11,21.6779]
[1725835483144,12.34788624,130.22,130.14,22.9223]
[1725835483367,12.34788624,130.22,130.17,6.319]
[1725835483551,12.34788624,130.22,130.19,16.6033]
[1725835483754,12.84835218,130.29,130.2,7.47259455]
[1725835483971,12.84835218,130.29,130.21,1.15339744]
[1725835484347,12.84835218,130.29,130.2,6.319]
[1725835484667,12.43274678,130.28,130.2,6.319]
[1725835485450,21.40619975,130.28,130.2,6.319]
[1725835485645,12.50748012,130.27,130.2,6.319]
[1725835485881,1.92019189,130.26,130.2,6.319]
[1725835486347,12.34421646,130.25,130.2,6.319]
[1725835486540,45.0,130.24,130.2,6.319]
[1725835488070,20.0,130.26,130.2,6.319]
[1725835488071,45.0,130.25,130.2,6.319]
[1725835488571,57.29255459,130.25,130.2,6.319]
[1725835489374,14.38385878,130.24,130.19,16.6033]
[1725835489549,20.0,130.23,130.19,16.6033]
[1725835489757,45.0,130.22,130.19,16.6033]
[1725835490062,1.92041925,130.21,130.19,16.6033]
[1725835490361,1.92041891,130.21,130.19,16.6033]
[1725835490667,45.0,130.22,130.19,16.6033]
[1725835490879,1.9204186,130.21,130.19,16.6033]
[1725835491175,45.0,130.22,130.19,16.6033]
[1725835491780,1.920418,130.21,130.19,16.6033]
[1725835491957,1.92048459,130.2,130.19,16.6033]
[1725835492555,1.92048459,130.2,130.17,6.319]
[1725835493584,1.92066939,130.21,130.17,6.319]
[1725835494255,45.0,130.22,130.17,6.319]
[1725835494256,46.92079038,130.22,130.17,6.319]
[1725835497174,46.92079038,130.22,130.16,16.6033]
[1725835498551,53.06429038,130.22,130.16,16.6033]
[1725835499250,46.92079038,130.22,130.16,16.6033]
[1725835500465,53.06419038,130.22,130.16,16.6033]
[1725835501076,46.92079038,130.22,130.16,16.6033]
[1725835501685,6.1444,130.2,130.14,6.319]
[1725835501982,46.92114717,130.19,130.14,6.319]
[1725835502277,45.0,130.19,130.14,6.319]
[1725835502776,1.92093094,130.18,130.14,6.319]
[1725835502966,45.0,130.19,130.14,6.319]
[1725835502967,1.9210178,130.17,130.14,6.319]
[1725835503273,1.9210178,130.17,130.13,16.2706]
[1725835503674,46.9210178,130.17,130.11,6.1341]
[1725835504060,26.1463,130.16,130.1,0.861619]
[1725835504379,45.0,130.15,130.1,0.861619]
[1725835505152,46.92168889,130.15,130.1,0.861619]
[1725835505369,1.92176707,130.14,130.1,0.861619]
[1725835505777,45.0,130.15,130.1,0.861619]
[1725835506355,1.92169828,130.14,130.1,0.861619]
[1725835506674,59.2800565,130.15,130.1,0.861619]
[1725835507057,57.35832421,130.15,130.1,0.861619]
[1725835507869,1.9216974,130.14,130.1,0.861619]
[1725835508254,6.1486,130.11,130.1,0.861619]
[1725835508454,65.0,130.11,130.1,0.861619]
[1725835508694,65.0,130.11,130.04,6.6558]
[1725835508695,85.69112449,130.11,130.04,6.6558]
[1725835508993,59.67981277,130.1,130.02,16.153]
[1725835509191,13.0792733,130.09,130.02,16.153]
[1725835509362,45.0,130.08,130.02,16.153]
[1725835510158,46.92251412,130.08,130.02,16.153]
[1725835510484,1.92263843,130.07,130.02,16.153]
[1725835511556,45.0,130.08,130.01,6.6558]
[1725835511557,12.62202005,130.06,130.01,21.8265]
[1725835513973,45.0,130.05,130.01,21.8265]
[1725835514175,12.62202005,130.06,130.01,21.8265]
[1725835515776,12.62202005,130.06,129.98,21.0843]
[1725835516401,45.0,130.05,129.98,21.0843]
[1725835516975,1.92292482,130.04,129.98,21.0843]
[1725835517190,45.0,130.05,129.98,21.0843]
[1725835518485,12.62202005,130.06,129.98,21.0843]
[1725835519498,45.0,130.05,129.98,21.0843]
[1725835519703,1.92288324,130.04,129.98,21.0843]
[1725835520294,12.39988157,130.04,129.98,21.0843]
[1725835520505,45.0,130.03,129.98,21.0843]
[1725835520681,45.0,130.03,129.96,17.521519]
[1725835520881,59.36716195,130.04,129.96,17.521519]
[1725835521084,57.4439207,130.04,129.96,17.521519]
[1725835522295,12.4439207,130.04,129.97,27.85807382]
[1725835522499,23.17428726,130.07,130.03,6.3451]
[1725835522826,12.45691502,130.13,130.05,27.85807382]
[1725835523119,12.45691502,130.13,130.03,34.20317382]
[1725835523414,12.45691502,130.13,130.05,27.85807382]
[1725835524103,12.45691502,130.13,130.03,41.17515571]
[1725835524410,12.45691502,130.13,130.05,34.83005571]
[1725835524585,12.45691502,130.13,130.05,35.98797434]
[1725835524784,12.45691502,130.13,130.05,34.83005571]
[1725835526425,45.0,130.12,130.05,34.83005571]
[1725835526592,12.45691502,130.13,130.05,34.83005571]
[1725835526791,12.45691502,130.13,130.05,35.98827909]
[1725835526993,12.45691502,130.13,130.06,20.0]
[1725835527706,1.92165567,130.12,130.06,20.0]
[1725835527905,46.92165567,130.12,130.05,20.0]
[1725835528502,45.0,130.12,130.05,20.0]
[1725835529124,12.45691502,130.13,130.06,1.15860869]
[1725835529381,12.45691502,130.13,130.05,54.83005571]
[1725835530826,12.45691502,130.13,130.07,34.83005571]
[1725835531043,28.68926439,130.18,130.07,34.83005571]
[1725835531222,28.68926439,130.18,130.05,20.0]
[1725835531223,24.88753135,130.17,130.05,54.83005571]
[1725835531399,12.42027777,130.16,130.05,54.83005571]
[1725835531600,1.92163505,130.15,130.05,54.83005571]
[1725835531802,12.26990763,130.14,130.05,54.83005571]
[1725835532426,12.26990763,130.14,130.07,34.83005571]
[1725835532725,12.26990763,130.14,130.05,54.83005571]
[1725835533405,1.92171379,130.13,130.05,54.83005571]
[1725835533599,1.92171379,130.13,130.04,15.658]
[1725835533801,1.9217288,130.12,130.04,15.658]
[1725835534000,45.0,130.13,130.04,15.658]
[1725835534413,12.26990763,130.14,130.05,34.83005571]
[1725835534617,1.92157921,130.13,130.05,34.83005571]
[1725835534809,46.92157921,130.13,130.05,34.83005571]
[1725835535000,46.92157921,130.13,130.04,15.658]
[1725835537449,45.0,130.13,130.05,34.83005571]
[1725835538251,12.26990763,130.14,130.05,35.98829242]
[1725835538416,12.26990763,130.14,130.05,34.83005571]
[1725835538616,1.92156958,130.13,130.05,34.83005571]
[1725835538929,1.92156958,130.13,130.04,15.658]
[1725835539716,45.0,130.13,130.04,15.658]
[1725835539934,1.9217865,130.12,130.04,15.658]
[1725835540140,46.9217865,130.12,130.04,15.658]
[1725835540542,1.9217865,130.12,130.04,15.658]
[1725835541226,46.92193827,130.13,130.04,15.658]
[1725835541425,45.0,130.13,130.04,15.658]
[1725835541634,1.92193272,130.12,130.04,15.658]
[1725835541833,45.0,130.13,130.04,15.658]
[1725835542411,57.25055456,130.13,130.04,15.658]
[1725835542643,1.9219298,130.12,130.04,15.658]
[1725835542835,7.7321298,130.12,130.03,6.3451]
[1725835543013,51.149,130.11,130.01,15.4276]
[1725835543437,8.07167418,130.1,130.01,15.4276]
[1725835543721,45.0,130.09,130.01,15.4276]
[1725835545547,12.27036876,130.1,130.02,27.88097382]
[1725835546063,12.27036876,130.1,130.04,27.88097382]
[1725835547447,12.27036876,130.1,130.02,27.88097382]
[1725835547626,45.0,130.09,130.02,27.88097382]
[1725835549027,12.27036876,130.1,130.02,27.88097382]
[1725835549839,45.0,130.09,130.02,27.88097382]
[1725835550851,12.27036876,130.1,130.02,27.88097382]
[1725835554461,12.27036876,130.1,130.04,27.88097382]
[1725835557441,12.27036876,130.1,130.06,27.88097382]
[1725835557777,12.27036876,130.1,130.08,27.88097382]
[1725835557952,14.37384239,130.17,130.08,27.88097382]
[1725835558454,12.36256288,130.16,130.08,27.88097382]
[1725835558779,12.36256288,130.16,130.1,27.88097382]
[1725835559763,12.36256288,130.16,130.11,1.15646853]
[1725835559966,12.36256288,130.16,130.11,1.15663559]
[1725835560152,12.36256288,130.16,130.12,27.88097382]
[1725835560453,12.36256288,130.16,130.13,16.2405]
[1725835560866,12.36256288,130.16,130.09,34.00207382]
[1725835561169,12.36256288,130.16,130.1,36.4094]
[1725835562681,46.92109735,130.15,130.1,16.4094]
[1725835562967,46.92136478,130.15,130.1,16.4094]
[1725835563270,12.36256288,130.16,130.09,6.1211]
[1725835563441,12.36256288,130.16,130.09,34.00207382]
[1725835563648,12.36256288,130.16,130.09,6.1211]
[1725835563947,12.36256288,130.16,130.09,34.00207382]
[1725835565946,12.36256288,130.16,130.09,6.1211]
[1725835566150,12.36256288,130.16,130.11,27.88097382]
[1725835566371,12.36256288,130.16,130.11,29.0374135]
[1725835566763,12.36256288,130.16,130.13,43.69147382]
[1725835567066,18.267,130.22,130.13,43.69147382]
[1725835567778,8.06461981,130.21,130.13,15.8105]
[1725835568073,45.0,130.2,130.13,15.8105]
[1725835568674,46.92095629,130.2,130.13,15.8105]
[1725835569959,45.0,130.2,130.13,15.8105]
[1725835570157,1.92082168,130.2,130.13,15.8105]
[1725835570350,8.06522168,130.2,130.1,16.5046]
[1725835570553,20.0,130.19,130.1,16.5046]
[1725835570770,1.92154024,130.18,130.09,6.1211]
[1725835570952,7.73172049,130.17,130.07,16.5046]
[1725835571159,32.1236,130.16,130.07,16.5046]
[1725835571353,46.92173833,130.15,130.07,16.5046]
[1725835571578,1.92173994,130.14,130.07,16.5046]
[1725835572442,45.0,130.15,130.07,16.5046]
[1725835572443,53.06851145,130.15,130.07,16.5046]
[1725835572752,1.92181097,130.14,130.07,16.5046]
[1725835575188,21.92181097,130.14,130.07,16.5046]
[1725835575475,45.0,130.13,130.07,16.5046]
[1725835577170,1.92194188,130.12,130.06,6.5852]
[1725835577787,46.92203353,130.13,130.06,6.5852]
[1725835578464,45.0,130.13,130.07,27.88097382]
[1725835578781,1.92159486,130.15,130.07,27.88097382]
[1725835578974,1.92160227,130.14,130.07,27.88097382]
[1725835579356,21.92160114,130.15,130.07,27.88097382]
[1725835580060,21.92160114,130.15,130.06,6.5852]
[1725835580562,45.0,130.14,130.06,6.5852]
[1725835580768,1.92162551,130.13,130.06,6.5852]
[1725835581069,45.0,130.14,130.06,6.5852]
[1725835581904,46.92159767,130.14,130.06,6.5852]
[1725835582188,45.0,130.15,130.06,6.5852]
[1725835582881,45.0,130.15,130.07,27.88097382]
[1725835584488,12.1236,130.16,130.07,27.88097382]
[1725835584665,14.045198,130.16,130.07,27.88097382]
[1725835585318,20.0,130.15,130.07,27.88097382]
[1725835585971,45.0,130.14,130.07,27.88097382]
[1725835587912,12.1236,130.16,130.07,27.88097382]
[1725835588100,7.73151148,130.17,130.08,20.0]
[1725835588404,45.0,130.16,130.1,15.7031]
[1725835594002,1.92125619,130.15,130.07,16.87498172]
[1725835594341,1.92184041,130.14,130.07,15.3342]
[1725835594481,46.92184041,130.14,130.07,15.3342]
[1725835596887,53.06914041,130.14,130.07,15.3342]
[1725835597409,6.1477,130.13,130.06,6.5852]
[1725835597704,46.92201441,130.12,130.06,6.5852]
[1725835598294,1.92201441,130.12,130.06,6.5852]
[1725835599610,46.92203841,130.13,130.06,6.5852]